fUSD/lending_fUSD_20240426
["ID","MTS","AMOUNT","RATE_DAILY","PERIOD"]
[323677841,1714159845739,-500.0,0.00011232,2]
[323677843,1714159845752,-500.0,0.00011232,2]
[323677844,1714159845762,-582.67,0.00011232,2]
[323677845,1714159845772,-500.0,0.00011232,2]
[323677846,1714159845781,-500.0,0.00011232,2]
[323677847,1714159845790,-500.0,0.00011232,2]
[323677848,1714159845800,-500.0,0.00011232,2]
[323677849,1714159845810,-535.16,0.00011232,2]
[323677850,1714159845819,-500.0,0.00011232,2]
[323677851,1714159845829,-500.0,0.00011232,2]
[323677852,1714159845839,-500.0,0.00011232,2]
[323677853,1714159845848,-520.15,0.00011232,2]
[323677854,1714159845857,-500.0,0.00011232,2]
[323677855,1714159845867,-500.0,0.00011232,2]
[323677856,1714159845876,-500.0,0.00011232,2]
[323677857,1714159845887,-646.89,0.00011232,2]
[323677858,1714159845902,-500.0,0.00011232,2]
[323677859,1714159845912,-641.15,0.00011232,2]
[323677860,1714159845922,-643.32,0.00011232,2]
[323677861,1714159845931,-500.0,0.00011232,2]
[323677862,1714159845940,-500.0,0.00011232,2]
[323677863,1714159845949,-500.0,0.00011232,2]
[323677864,1714159845963,-500.0,0.00011232,2]
[323677865,1714159845972,-500.0,0.00011232,2]
[323677866,1714159845985,-500.0,0.00011232,2]
[323677867,1714159845994,-500.0,0.00011232,2]
[323677868,1714159846004,-500.0,0.00011232,2]
[323677869,1714159846014,-506.36895933,0.00011232,2]
[323677870,1714159846023,-500.0,0.00011232,2]
[323677871,1714159846033,-500.0,0.00011232,2]
[323677872,1714159846042,-500.0,0.00011232,2]
[323677873,1714159846051,-500.0,0.00011232,2]
[323677874,1714159846061,-1123.91,0.00011232,2]
[323677875,1714159846071,-500.0,0.00011232,2]
[323677876,1714159846081,-1563.01,0.00011232,2]
[323677878,1714159846091,-500.0,0.00011232,2]
[323677879,1714159846101,-500.0,0.00011232,2]
[323677881,1714159846110,-231.83,0.00011232,2]
[323677883,1714159846119,-502.05778128,0.00011232,2]
[323677885,1714159846129,-500.0,0.00011232,2]
[323677886,1714159846138,-500.0,0.00011232,2]
[323677887,1714159846147,-1063.67,0.00011232,2]
[323677888,1714159846156,-500.0,0.00011232,2]
[323677889,1714159846166,-500.0,0.00011232,2]
[323677890,1714159846175,-500.0,0.00011232,2]
[323677891,1714159846184,-500.0,0.00011232,2]
[323677892,1714159846194,-500.0,0.00011232,2]
[323677893,1714159846208,-592.65,0.00011232,2]
[323677894,1714159846218,-500.0,0.00011232,2]
[323677895,1714159846227,-656.54,0.00011232,2]
[323677896,1714159846236,-3891.08,0.00011232,2]
[323677897,1714159846245,-500.0,0.00011232,2]
[323677898,1714159846254,-7660.99,0.00011232,2]
[323677899,1714159846263,-2234.13,0.00011232,2]
[323677900,1714159846272,-3044.78,0.00011232,2]
[323677901,1714159846281,-2454.22,0.00011232,2]
[323677902,1714159846291,-500.0,0.00011232,2]
[323677903,1714159846300,-563.66122847,0.00011232,2]
[323677904,1714159846309,-227.97185166,0.00011232,2]
[323677905,1714159846318,-3430.07,0.00011232,2]
[323677906,1714159846328,-500.0,0.00011232,2]
[323677907,1714159846337,-1415.67,0.00011232,2]
[323677908,1714159846347,-1027.85,0.00011232,2]
[323677909,1714159846356,-500.0,0.00011232,2]
[323677910,1714159846365,-500.0,0.00011232,2]
[323677911,1714159846375,-6389.39,0.00011232,2]
[323677912,1714159846384,-5288.95,0.00011232,2]
[323677913,1714159846394,-500.0,0.00011232,2]
[323677914,1714159846403,-500.0,0.00011232,2]
[323677915,1714159846413,-500.0,0.00011232,2]
[323677916,1714159846422,-3787.09,0.00011232,2]
[323677917,1714159846432,-500.0,0.00011232,2]
[323677918,1714159846441,-500.0,0.00011232,2]
[323677919,1714159846450,-500.0,0.00011232,2]
[323677920,1714159846462,-500.0,0.00011232,2]
[323677921,1714159846471,-1627.11,0.00011232,2]
[323677922,1714159846481,-860.61,0.00011232,2]
[323677923,1714159846491,-1331.43,0.00011232,2]
[323677924,1714159846501,-500.0,0.00011232,2]
[323677925,1714159846512,-1056.44,0.00011232,2]
[323677926,1714159846522,-2719.93,0.00011232,2]
[323677927,1714159846533,-500.0,0.00011232,2]
[323677928,1714159846543,-500.0,0.00011232,2]
[323677929,1714159846552,-3269.59,0.00011232,2]
[323677930,1714159846562,-1136.5,0.00011232,2]
[323677931,1714159846571,-500.0,0.00011232,2]
[323677932,1714159846581,-500.0,0.00011232,2]
[323677933,1714159846590,-993.51,0.00011232,2]
[323677934,1714159846599,-502.35856832,0.00011232,2]
[323677935,1714159846609,-1427.41,0.00011232,2]
[323677936,1714159846619,-500.0,0.00011232,2]
[323677937,1714159846629,-1740.47,0.00011232,2]
[323677938,1714159846638,-522.01,0.00011232,2]
[323677939,1714159846647,-7906.24,0.00011232,2]
[323677940,1714159846656,-1246.52,0.00011232,2]
[323677941,1714159846666,-500.0,0.00011232,2]
[323677942,1714159846675,-2997.97,0.00011232,2]
[323677943,1714159846685,-2041.1,0.00011232,2]
[323677944,1714159846695,-737.41,0.00011232,2]
[323677945,1714159846706,-500.0,0.00011232,2]
[323677946,1714159846715,-500.0,0.00011232,2]
[323677947,1714159846726,-500.0,0.00011232,2]
[323677948,1714159846738,-500.0,0.00011232,2]
[323677949,1714159846747,-3567.08,0.00011232,2]
[323677950,1714159846758,-500.0,0.00011232,2]
[323677951,1714159846768,-1290.17,0.00011232,2]
[323677952,1714159846779,-2282.42,0.00011232,2]
[323677953,1714159846789,-669.1,0.00011232,2]
[323677954,1714159846800,-928.13,0.00011232,2]
[323677955,1714159846811,-4874.68,0.00011232,2]
[323677956,1714159846822,-507.73152609,0.00011232,2]
[323677957,1714159846832,-500.0,0.00011232,2]
[323677958,1714159846842,-2000.68,0.00011232,2]
[323677959,1714159846853,-905.84,0.00011232,2]
[323677960,1714159846864,-500.0,0.00011232,2]
[323677961,1714159846875,-1808.04,0.00011232,2]
[323677962,1714159846885,-500.0,0.00011232,2]
[323677963,1714159846896,-2215.46,0.00011232,2]
[323677964,1714159846907,-1977.46,0.00011232,2]
[323677966,1714159846918,-1162.29,0.00011232,2]
[323677967,1714159846928,-500.0,0.00011232,2]
[323677969,1714159846938,-1124.54,0.00011232,2]
[323677971,1714159846948,-2034.05,0.00011232,2]
[323677972,1714159846960,-884.62,0.00011232,2]
[323677973,1714159846969,-500.0,0.00011232,2]
[323677974,1714159846979,-500.0,0.00011232,2]
[323677975,1714159846988,-500.0,0.00011232,2]
[323677976,1714159847000,-500.0,0.00011232,2]
[323677977,1714159847009,-2672.35,0.00011232,2]
[323677978,1714159847018,-1813.19,0.00011232,2]
[323677979,1714159847027,-1613.85,0.00011232,2]
[323677980,1714159847038,-500.0,0.00011232,2]
[323677981,1714159847047,-500.0,0.00011232,2]
[323677982,1714159847057,-3595.28,0.00011232,2]
[323677983,1714159847068,-500.0,0.00011232,2]
[323677984,1714159847079,-4191.02,0.00011232,2]
[323677985,1714159847090,-487.76207151,0.00011232,2]
[323677986,1714159847100,-2252.77,0.00011232,2]
[323677987,1714159847111,-1538.51,0.00011232,2]
[323677988,1714159847122,-505.52622917,0.00011232,2]
[323677989,1714159847132,-500.0,0.00011232,2]
[323677990,1714159847142,-500.0,0.00011232,2]
[323677991,1714159847152,-2186.13,0.00011232,2]
[323677992,1714159847162,-1366.27,0.00011232,2]
[323677993,1714159847171,-909.87,0.00011232,2]
[323677994,1714159847183,-2198.98,0.00011232,2]
[323677995,1714159847192,-891.95,0.00011232,2]
[323677996,1714159847204,-500.0,0.00011232,2]
[323677997,1714159847215,-796.92,0.00011232,2]
[323677998,1714159847226,-5838.33,0.00011232,2]
[323677999,1714159847236,-1890.82,0.00011232,2]
[323678000,1714159847246,-3702.33,0.00011232,2]
[323678001,1714159847257,-500.0,0.00011232,2]
[323678002,1714159847268,-1963.82,0.00011232,2]
[323678003,1714159847278,-574.77655315,0.00011232,2]
[323678004,1714159847289,-2154.64,0.00011232,2]
[323678005,1714159847299,-500.0,0.00011232,2]
[323678006,1714159847309,-867.14,0.00011232,2]
[323678007,1714159847320,-500.0,0.00011232,2]
[323678008,1714159847330,-2372.44,0.00011232,2]
[323678009,1714159847341,-4510.22,0.00011232,2]
[323678010,1714159847352,-500.0,0.00011232,2]
[323678011,1714159847364,-500.0,0.00011232,2]
[323678012,1714159847376,-500.0,0.00011232,2]
[323678013,1714159847386,-1470.12,0.00011232,2]
[323678014,1714159847396,-500.0,0.00011232,2]
[323678015,1714159847405,-1081.84,0.00011232,2]
[323678016,1714159847415,-502.51507852,0.00011232,2]
[323678017,1714159847427,-2465.42,0.00011232,2]
[323678018,1714159847442,-1591.78,0.00011232,2]
[323678019,1714159847457,-4572.23,0.00011232,2]
[323678020,1714159847469,-500.0,0.00011232,2]
[323678021,1714159847484,-881.87,0.00011232,2]
[323678022,1714159847494,-5646.67,0.00011232,2]
[323678023,1714159847506,-500.0,0.00011232,2]
[323678024,1714159847520,-180.29,0.00011232,2]
[323678025,1714159847535,-654.29,0.00011232,2]
[323678026,1714159847550,-500.0,0.00011232,2]
[323678027,1714159847563,-2969.24,0.00011232,2]
[323678028,1714159847576,-962.29,0.00011232,2]
[323678029,1714159847590,-500.0,0.00011232,2]
[323678030,1714159847602,-2885.58,0.00011232,2]
[323678031,1714159847615,-502.52744124,0.00011232,2]
[323678032,1714159847628,-865.94,0.00011232,2]
[323678033,1714159847640,-1054.2,0.00011232,2]
[323678034,1714159847652,-856.74,0.00011232,2]
[323678035,1714159847666,-500.0,0.00011232,2]
[323678036,1714159847678,-1017.43,0.00011232,2]
[323678037,1714159847692,-500.0,0.00011232,2]
[323678038,1714159847706,-500.0,0.00011232,2]
[323678039,1714159847720,-940.44,0.00011232,2]
[323678040,1714159847735,-500.0,0.00011232,2]
[323678041,1714159847747,-1246.24,0.00011232,2]
[323678042,1714159847761,-500.0,0.00011232,2]
[323678043,1714159847773,-500.0,0.00011232,2]
[323678044,1714159847784,-500.0,0.00011232,2]
[323678045,1714159847797,-500.0,0.00011232,2]
[323678046,1714159847812,-908.96,0.00011232,2]
[323678047,1714159847826,-1724.94,0.00011232,2]
[323678048,1714159847841,-503.85158862,0.00011232,2]
[323678049,1714159847856,-500.0,0.00011232,2]
[323678050,1714159847869,-500.0,0.00011232,2]
[323678051,1714159847881,-500.0,0.00011232,2]
[323678052,1714159847893,-500.0,0.00011232,2]
[323678053,1714159847905,-4684.36,0.00011232,2]
[323678054,1714159847918,-500.0,0.00011232,2]
[323678055,1714159847929,-500.0,0.00011232,2]
[323678056,1714159847942,-500.0,0.00011232,2]
[323678057,1714159847954,-500.0,0.00011232,2]
[323678058,1714159847968,-5610.35,0.00011232,2]
[323678059,1714159847982,-504.45009408,0.00011232,2]
[323678060,1714159847997,-500.0,0.00011232,2]
[323678061,1714159848011,-985.86,0.00011232,2]
[323678062,1714159848024,-500.0,0.00011232,2]
[323678063,1714159848037,-500.0,0.00011232,2]
[323678064,1714159848049,-2974.11,0.00011232,2]
[323678065,1714159848060,-500.0,0.00011232,2]
[323678066,1714159848070,-500.0,0.00011232,2]
[323678067,1714159848080,-2451.96,0.00011232,2]
[323678068,1714159848092,-793.01,0.00011232,2]
[323678069,1714159848104,-4076.46,0.00011232,2]
[323678070,1714159848117,-500.0,0.00011232,2]
[323678071,1714159848129,-500.0,0.00011232,2]
[323678072,1714159848141,-3332.68,0.00011232,2]
[323678073,1714159848152,-500.0,0.00011232,2]
[323678074,1714159848166,-1281.89,0.00011232,2]
[323678075,1714159848177,-3135.1,0.00011232,2]
[323678076,1714159848187,-500.0,0.00011232,2]
[323678077,1714159848197,-500.0,0.00011236,2]
[323678078,1714159848209,-500.0,0.00011236,2]
[323678079,1714159848218,-500.0,0.00011236,2]
[323678080,1714159848229,-500.0,0.00011236,2]
[323678081,1714159848240,-662.88,0.00011236,2]
[323678082,1714159848251,-641.96,0.00011236,2]
[323678083,1714159848262,-469.48,0.00011236,2]
[323678084,1714159848273,-500.0,0.00011236,2]
[323678085,1714159848284,-500.0,0.00011236,2]
[323678086,1714159848295,-500.0,0.00011236,2]
[323678087,1714159848307,-1376.86,0.00011236,2]
[323678088,1714159848318,-764.8,0.00011236,2]
[323678089,1714159848329,-500.0,0.00011236,2]
[323678090,1714159848340,-919.05,0.00011236,2]
[323678091,1714159848351,-500.0,0.00011236,2]
[323678092,1714159848362,-500.0,0.00011236,2]
[323678093,1714159848373,-1129.06,0.00011236,2]
[323678094,1714159848383,-500.0,0.00011236,2]
[323678095,1714159848395,-2108.172031,0.00011236,2]
[323678096,1714159848406,-2108.172031,0.00011236,2]
[323678097,1714159848417,-1865.52,0.00011236,2]
[323678098,1714159848428,-500.0,0.00011237,2]
[323678099,1714159848439,-687.76,0.00011237,2]
[323678100,1714159848450,-526.4,0.00011237,2]
[323678101,1714159848463,-500.0,0.00011237,2]
[323678102,1714159848473,-500.0,0.00011237,2]
[323678103,1714159848483,-1168.82,0.00011237,2]
[323678104,1714159848494,-500.0,0.00011237,2]
[323678105,1714159848506,-500.0,0.00011237,2]
[323678106,1714159848517,-713.8,0.00011237,2]
[323678107,1714159848529,-643.3,0.00011237,2]
[323678108,1714159848544,-593.29,0.00011237,2]
[323678109,1714159848556,-500.0,0.00011237,2]
[323678110,1714159848567,-948.39,0.00011237,2]
[323678111,1714159848578,-500.0,0.00011237,2]
[323678112,1714159848590,-797.82,0.00011237,2]
[323678113,1714159848602,-703.42,0.00011237,2]
[323678114,1714159848618,-500.0,0.00011237,2]
[323678115,1714159848630,-503.08267711,0.00011237,2]
[323678116,1714159848642,-650.99,0.00011237,2]
[323678117,1714159848655,-848.7,0.00011237,2]
[323678118,1714159848666,-525.8,0.00011237,2]
[323678119,1714159848677,-162.34861419,0.00011237,2]
[323678120,1714159848688,-500.0,0.00011237,2]
[323678121,1714159848699,-500.0,0.00011237,2]
[323678122,1714159848713,-500.0,0.00011237,2]
[323678123,1714159848724,-716.68,0.00011237,2]
[323678124,1714159848736,-500.0,0.00011237,2]
[323678125,1714159848748,-500.0,0.00011237,2]
[323678126,1714159848759,-500.0,0.00011237,2]
[323678127,1714159848771,-632.91,0.00011237,2]
[323678128,1714159848783,-882.72,0.00011237,2]
[323678129,1714159848794,-500.0,0.00011237,2]
[323678130,1714159848806,-500.0,0.00011237,2]
[323678131,1714159848817,-500.0,0.00011237,2]
[323678132,1714159848829,-500.0,0.00011237,2]
[323678133,1714159848841,-594.24300484,0.00011237,2]
[323678134,1714159848853,-668.12,0.00011237,2]
[323678135,1714159848864,-500.0,0.00011237,2]
[323678136,1714159848875,-500.0,0.00011237,2]
[323678137,1714159848888,-1154.14,0.00011237,2]
[323678138,1714159848899,-500.0,0.00011237,2]
[323678139,1714159848911,-500.0,0.00011237,2]
[323678140,1714159848923,-500.0,0.00011237,2]
[323678141,1714159848934,-500.0,0.00011237,2]
[323678142,1714159848947,-584.29,0.00011237,2]
[323678143,1714159848960,-500.0,0.00011237,2]
[323678144,1714159848973,-948.11,0.00011237,2]
[323678145,1714159848984,-775.9,0.00011237,2]
[323678146,1714159848996,-500.0,0.00011238,2]
[323678147,1714159849007,-378.20782051,0.00011238,2]
[323678148,1714159849018,-500.0,0.00011238,2]
[323678149,1714159849029,-500.0,0.00011238,2]
[323678150,1714159849041,-237.67399452,0.00011238,2]
[323678151,1714159849053,-277.97,0.00011238,2]
[323678152,1714159849065,-262.49,0.00011238,2]
[323678153,1714159849078,-500.0,0.00011238,2]
[323678154,1714159849089,-190.02834006,0.00011238,2]
[323678155,1714159849102,-500.0,0.00011238,2]
[323678156,1714159849114,-500.0,0.00011238,2]
[323678157,1714159849127,-500.0,0.00011238,2]
[323678158,1714159849140,-500.0,0.00011238,2]
[323678159,1714159849152,-500.0,0.00011238,2]
[323678160,1714159849164,-532.74,0.00011238,2]
[323678161,1714159849175,-500.0,0.00011238,2]
[323678162,1714159849188,-500.0,0.00011238,2]
[323678163,1714159849199,-500.0,0.00011238,2]
[323678164,1714159849212,-1214.65,0.00011238,2]
[323678165,1714159849224,-500.0,0.00011238,2]
[323678166,1714159849236,-1259.1,0.00011238,2]
[323678167,1714159849246,-500.0,0.00011238,2]
[323678168,1714159849257,-500.0,0.00011238,2]
[323678169,1714159849269,-967.69,0.00011238,2]
[323678170,1714159849279,-715.1,0.00011238,2]
[323678171,1714159849291,-500.0,0.00011238,2]
[323678172,1714159849303,-182.18056906,0.00011271,2]
[323678173,1714159849315,-500.0,0.00011287,2]
[323678174,1714159849326,-500.0,0.00011287,2]
[323678175,1714159849336,-2294.02134079,0.00011296,2]
[323678176,1714159849347,-155.0,0.00011347,2]
[323678177,1714159849358,-167.34808462,0.00011347,2]
[323678178,1714159849368,-155.0,0.00011347,2]
[323678179,1714159849379,-577.39323317,0.00011348,2]
[323678180,1714159849389,-817.0,0.00011375,2]
[323678181,1714159849400,-177.99668941,0.0001141,2]
[323678182,1714159849412,-419.06,0.00011452,2]
[323678183,1714159849423,-2294.02134079,0.00011457,2]
[323678184,1714159849433,-1000.0,0.00011498,2]
[323678185,1714159849444,-500.0,0.00011498,2]
[323678186,1714159849456,-3323.692847,0.000115,2]
[323678187,1714159849467,-880.0,0.00011504,2]
[323678188,1714159849478,-500.0,0.00011506,2]
[323678189,1714159849489,-500.0,0.00011506,2]
[323678190,1714159849500,-504.40556781,0.00011506,2]
[323678191,1714159849510,-508.80924571,0.00011506,2]
[323678192,1714159849522,-500.0,0.00011506,2]
[323678193,1714159849534,-500.0,0.00011506,2]
[323678194,1714159849548,-500.0,0.00011506,2]
[323678195,1714159849560,-500.0,0.00011506,2]
[323678196,1714159849571,-601.57,0.00011506,2]
[323678197,1714159849582,-688.05,0.00011506,2]
[323678198,1714159849593,-1151.71,0.00011506,2]
[323678199,1714159849604,-500.0,0.00011506,2]
[323678200,1714159849617,-500.0,0.00011506,2]
[323678201,1714159849629,-500.0,0.00011506,2]
[323678202,1714159849640,-500.0,0.00011506,2]
[323678203,1714159849653,-500.0,0.00011506,2]
[323678204,1714159849665,-500.0,0.00011506,2]
[323678205,1714159849676,-500.0,0.00011506,2]
[323678206,1714159849690,-1525.29,0.00011506,2]
[323678207,1714159849701,-500.0,0.00011506,2]
[323678208,1714159849714,-680.02,0.00011506,2]
[323678209,1714159849726,-500.0,0.00011506,2]
[323678210,1714159849738,-520.73,0.00011506,2]
[323678211,1714159849749,-500.0,0.00011506,2]
[323678212,1714159849761,-527.58269509,0.00011506,2]
[323678213,1714159849772,-535.02237028,0.00011506,2]
[323678214,1714159849783,-975.22,0.00011506,2]
[323678215,1714159849795,-500.0,0.00011506,2]
[323678216,1714159849808,-1544.74,0.00011506,2]
[323678217,1714159849820,-1486.08,0.00011506,2]
[323678218,1714159849832,-1702.91,0.00011506,2]
[323678219,1714159849844,-500.0,0.00011506,2]
[323678220,1714159849855,-585.45,0.00011506,2]
[323678221,1714159849868,-430.04,0.00011506,2]
[323678222,1714159849879,-367.42,0.00011506,2]
[323678223,1714159849890,-500.0,0.00011506,2]
[323678224,1714159849901,-500.0,0.00011506,2]
[323678225,1714159849912,-500.0,0.00011506,2]
[323678226,1714159849923,-500.0,0.00011506,2]
[323678227,1714159849934,-632.85,0.00011506,2]
[323678228,1714159849946,-500.0,0.00011506,2]
[323678229,1714159849957,-671.98,0.00011506,2]
[323678230,1714159849968,-775.88,0.00011506,2]
[323678231,1714159849979,-347.14128329,0.00011506,2]
[323678232,1714159849990,-500.0,0.00011506,2]
[323678233,1714159850001,-500.0,0.00011506,2]
[323678234,1714159850012,-500.0,0.00011506,2]
[323678235,1714159850024,-500.0,0.00011506,2]
[323678236,1714159850035,-500.0,0.00011506,2]
[323678237,1714159850046,-500.0,0.00011506,2]
[323678238,1714159850056,-582.67,0.00011506,2]
[323678239,1714159850066,-500.0,0.00011506,2]
[323678240,1714159850077,-500.0,0.00011506,2]
[323678241,1714159850089,-500.0,0.00011506,2]
[323678242,1714159850101,-233.91,0.00011506,2]
[323678243,1714159850113,-646.89,0.00011506,2]
[323678244,1714159850125,-500.0,0.00011506,2]
[323678245,1714159850137,-643.32,0.00011506,2]
[323678246,1714159850148,-500.0,0.00011506,2]
[323678247,1714159850159,-500.0,0.00011506,2]
[323678248,1714159850171,-500.0,0.00011506,2]
[323678249,1714159850182,-500.0,0.00011506,2]
[323678250,1714159850193,-500.0,0.00011506,2]
[323678251,1714159850206,-500.0,0.00011506,2]
[323678252,1714159850217,-1123.91,0.00011506,2]
[323678253,1714159850228,-520.33,0.00011506,2]
[323678254,1714159850239,-1563.01,0.00011506,2]
[323678255,1714159850252,-1063.67,0.00011506,2]
[323678256,1714159850263,-500.0,0.00011506,2]
[323678257,1714159850273,-500.0,0.00011506,2]
[323678258,1714159850285,-592.65,0.00011506,2]
[323678259,1714159850295,-500.0,0.00011506,2]
[323678260,1714159850306,-656.54,0.00011506,2]
[323678261,1714159850317,-3891.08,0.00011506,2]
[323678262,1714159850329,-500.0,0.00011506,2]
[323678263,1714159850340,-6755.46405743,0.00011506,2]
[323678264,1714159850371,-905.52594257,0.00011506,2]
[323678265,1714159850383,-2234.13,0.00011506,2]
[323678266,1714159850394,-3044.78,0.00011506,2]
[323678267,1714159850405,-2454.22,0.00011506,2]
[323678268,1714159850415,-500.0,0.00011506,2]
[323678269,1714159850426,-3430.07,0.00011506,2]
[323678270,1714159850437,-500.0,0.00011506,2]
[323678271,1714159850448,-1415.67,0.00011506,2]
[323678272,1714159850461,-1027.85,0.00011506,2]
[323678273,1714159850473,-500.0,0.00011506,2]
[323678274,1714159850484,-6389.39,0.00011506,2]
[323678275,1714159850496,-5288.95,0.00011506,2]
[323678276,1714159850507,-500.0,0.00011506,2]
[323678277,1714159850517,-500.0,0.00011506,2]
[323678278,1714159850529,-3787.09,0.00011506,2]
[323678279,1714159850541,-500.0,0.00011506,2]
[323678280,1714159850552,-500.0,0.00011506,2]
[323678281,1714159850564,-604.76,0.00011506,2]
[323678282,1714159850576,-500.0,0.00011506,2]
[323678283,1714159850588,-1627.11,0.00011506,2]
[323678284,1714159850598,-860.61,0.00011506,2]
[323678285,1714159850610,-1331.43,0.00011506,2]
[323678286,1714159850621,-500.0,0.00011506,2]
[323678287,1714159851011,-2719.93,0.00011506,2]
[323678288,1714159851038,-1056.44,0.00011506,2]
[323678289,1714159851059,-500.0,0.00011506,2]
[323678290,1714159851076,-3269.59,0.00011506,2]
[323678291,1714159851086,-1136.5,0.00011506,2]
[323678292,1714159851097,-500.0,0.00011506,2]
[323678293,1714159851107,-993.51,0.00011506,2]
[323678294,1714159851117,-1427.41,0.00011506,2]
[323678295,1714159851127,-500.0,0.00011506,2]
[323678296,1714159851137,-1740.47,0.00011506,2]
[323678297,1714159851147,-522.01,0.00011506,2]
[323678298,1714159851158,-7906.24,0.00011506,2]
[323678299,1714159851169,-1246.52,0.00011506,2]
[323678300,1714159851179,-500.0,0.00011506,2]
[323678301,1714159851190,-2997.97,0.00011506,2]
[323678302,1714159851201,-2041.1,0.00011506,2]
[323678303,1714159851213,-737.41,0.00011506,2]
[323678304,1714159851224,-500.0,0.00011506,2]
[323678305,1714159851236,-3567.08,0.00011506,2]
[323678306,1714159851245,-1290.17,0.00011506,2]
[323678307,1714159851255,-2282.42,0.00011506,2]
[323678308,1714159851265,-669.1,0.00011506,2]
[323678309,1714159851276,-928.13,0.00011506,2]
[323678310,1714159851287,-4874.68,0.00011506,2]
[323678311,1714159851297,-2108.172031,0.00011506,2]
[323678312,1714159851307,-2000.68,0.00011506,2]
[323678313,1714159851317,-905.84,0.00011506,2]
[323678314,1714159851328,-1808.04,0.00011506,2]
[323678315,1714159851338,-175.05611843,0.00011506,2]
[323678316,1714159851348,-2215.46,0.00011506,2]
[323678317,1714159851358,-2108.172031,0.00011506,2]
[323678318,1714159851367,-1977.46,0.00011506,2]
[323678319,1714159851377,-500.0,0.00011506,2]
[323678320,1714159851387,-1162.29,0.00011506,2]
[323678321,1714159851397,-1124.54,0.00011506,2]
[323678322,1714159851407,-2034.05,0.00011506,2]
[323678323,1714159851416,-884.62,0.00011506,2]
[323678324,1714159851426,-500.0,0.00011506,2]
[323678325,1714159851436,-500.0,0.00011506,2]
[323678326,1714159851445,-500.0,0.00011506,2]
[323678327,1714159851455,-2672.35,0.00011506,2]
[323678328,1714159851466,-1813.19,0.00011506,2]
[323678329,1714159851477,-1613.85,0.00011506,2]
[323678330,1714159851487,-500.0,0.00011506,2]
[323678331,1714159851498,-3595.28,0.00011506,2]
[323678332,1714159851508,-500.0,0.00011506,2]
[323678333,1714159851518,-4191.02,0.00011506,2]
[323678334,1714159851529,-2252.77,0.00011506,2]
[323678335,1714159851540,-1538.51,0.00011506,2]
[323678336,1714159851552,-500.0,0.00011506,2]
[323678337,1714159851562,-2186.13,0.00011506,2]
[323678338,1714159851572,-1366.27,0.00011506,2]
[323678339,1714159851583,-909.87,0.00011506,2]
[323678340,1714159851593,-980.295566,0.00011506,2]
[323678341,1714159851899,-252.44131236,0.00011506,2]
[323678342,1714159851911,-966.24312164,0.00011506,2]
[323678343,1714159851921,-891.95,0.00011506,2]
[323678344,1714159851931,-500.0,0.00011506,2]
[323678345,1714159851941,-796.92,0.00011506,2]
[323678346,1714159851952,-5838.33,0.00011506,2]
[323678347,1714159851962,-1890.82,0.00011506,2]
[323678348,1714159851973,-3702.33,0.00011506,2]